bitfinex-derivatives/quotes_ETHF0:USTF0_20250712
["timestamp","ask_amount","ask_price","bid_price","bid_amount"]
[1752354165274,3.21562,2921.2,2921.1,2.29613]
[1752354165275,3.21561,2921.2,2921.1,2.29613]
[1752354165475,2.5312,2921.2,2921.1,3.23743]
[1752354166076,3.21561,2921.2,2921.1,1.6117]
[1752354166674,3.21561,2921.2,2921.1,0.6377]
[1752354167077,3.21561,2921.2,2921.1,1.32213]
[1752354167271,2.5312,2921.2,2921.1,1.32213]
[1752354167472,2.5312,2921.2,2921.1,3.23743]
[1752354167668,3.21561,2921.2,2921.1,2.553]
[1752354167870,2.5312,2921.0,2920.6,4.1818]
[1752354168078,2.5312,2921.0,2920.4,2.29629]
[1752354168079,0.6523,2920.5,2920.4,2.29629]
[1752354168277,2.5312,2920.5,2920.4,3.23759]
[1752354168983,3.21577,2920.5,2920.4,2.553]
[1752354169178,3.21577,2920.5,2920.4,0.6377]
[1752354169578,2.30832,2920.3,2920.2,2.29633]
[1752354169879,2.5312,2920.3,2920.2,3.23764]
[1752354170379,3.21582,2920.3,2920.2,2.553]
[1752354170572,2.5312,2920.3,2920.2,3.23764]
[1752354172071,1.5598,2920.3,2920.2,3.23764]
[1752354172274,1.6237,2920.5,2920.4,3.23759]
[1752354172477,3.2078,2920.7,2920.6,3.23755]
[1752354172881,4.7676,2920.7,2920.6,3.23755]
[1752354173079,5.739,2920.7,2920.6,3.23755]
[1752354173678,2.5312,2920.7,2920.6,3.23755]
[1752354174077,2.5312,2920.7,2920.6,3.27175]
[1752354177088,2.5312,2920.7,2920.6,2.33045]
[1752354177290,2.5312,2920.7,2920.6,3.27175]
[1752354177783,1.5598,2920.7,2920.6,3.27175]
[1752354177984,0.6523,2920.7,2920.6,3.27175]
[1752354178591,2.5312,2920.7,2920.6,3.27175]
[1752354179190,3.2078,2921.2,2921.1,0.68443]
[1752354179389,5.739,2921.2,2921.1,2.29613]
[1752354179889,5.739,2921.2,2921.1,3.23743]
[1752354180190,2.5312,2921.2,2921.1,3.23743]
[1752354181291,3.2078,2921.8,2921.1,1.32213]
[1752354181495,2.5312,2921.4,2921.3,5.44131615]
[1752354182489,6.42327,2921.8,2921.7,1.6117]
[1752354182795,1.33659,2921.7,2921.6,1.322]
[1752354182991,3.21549,2921.7,2921.6,1.322]
[1752354183391,3.21549,2921.7,2921.6,0.6377]
[1752354183695,2.5312,2921.7,2921.6,1.32201]
[1752354183891,3.21549,2921.7,2921.6,1.32201]
[1752354185096,3.21549,2921.7,2921.6,2.29601]
[1752354186790,2.5312,2921.7,2921.6,2.29601]
[1752354186996,2.5312,2921.7,2921.6,3.27641]
[1752354187396,3.21549,2921.7,2921.6,3.27641]
[1752354187595,2.5312,2921.7,2921.6,3.27641]
[1752354188598,5.7655,2922.1,2922.0,2.5304]
[1752354188803,6.80605377,2922.1,2922.0,3.21462]
[1752354188999,7.49025377,2922.1,2922.0,2.5304]
[1752354189202,3.24192,2922.0,2921.9,1.30123]
[1752354189403,3.24192,2922.0,2921.9,2.23423]
[1752354190003,3.24192,2922.0,2921.9,3.21463]
[1752354191704,2.5577,2922.0,2921.9,3.21463]
[1752354192301,3.24188,2922.2,2922.1,0.6842]
[1752354192605,1.6099,2922.2,2922.1,3.2146]
[1752354192801,0.6331,2922.2,2922.1,4.31596166]
[1752354193001,2.5577,2922.4,2922.3,3.21455]
[1752354193197,2.65003152,2922.4,2922.3,3.21455]
[1752354193398,1.6099,2922.4,2922.3,3.21455]
[1752354193908,2.29403,2922.4,2922.3,4.31591166]
[1752354194107,3.24183,2922.4,2922.3,4.31591166]
[1752354194906,3.24183,2922.4,2922.3,3.21455]
[1752354195104,3.2419,2922.2,2922.1,1.55]
[1752354195405,3.2419,2922.2,2922.1,2.5304]
[1752354195799,2.5577,2922.2,2922.1,3.2146]
[1752354196102,1.6099,2922.5,2922.4,2.5304]
[1752354196308,2.29401,2922.5,2922.4,2.5304]
[1752354196502,2.29401,2922.5,2922.4,1.55]
[1752354196700,3.24181,2922.5,2922.4,0.617]
[1752354196904,0.68413,2922.4,2922.3,0.68413]
[1752354197106,3.24183,2922.4,2922.3,0.68413]
[1752354197908,2.5577,2922.4,2922.3,0.68413]
[1752354198111,3.24183,2922.4,2922.3,2.23413]
[1752354198406,2.5577,2922.4,2922.3,2.23413]
[1752354198608,3.24183,2922.4,2922.3,2.23413]
[1752354199100,2.5577,2922.4,2922.3,2.23413]
[1752354199304,3.2078,2922.7,2922.5,0.68408]
[1752354199509,5.7655,2922.7,2922.6,2.5304]
[1752354200809,5.7655,2922.7,2922.6,3.21448]
[1752354201109,6.44956,2922.7,2922.6,3.21448]
[1752354201502,6.44956,2922.7,2922.6,1.30108]
[1752354202109,6.44956,2922.7,2922.6,2.23408]
[1752354202508,6.44956,2922.7,2922.6,3.21448]
[1752354203310,5.7655,2922.7,2922.6,3.21448]
[1752354203513,0.6331,2923.0,2922.9,1.30099]
[1752354203814,3.24169,2923.0,2922.9,1.30099]
[1752354204112,3.24169,2923.0,2922.9,3.21439]
[1752354204113,2.5577,2923.0,2922.9,3.21439]
[1752354204610,2.26483,2923.3,2923.2,1.30094]
[1752354204805,3.2078,2923.5,2923.4,2.5304]
[1752354205007,1.31697,2923.5,2923.4,3.21429]
[1752354205202,2.5577,2923.5,2923.4,3.21429]
[1752354205714,3.24157,2923.5,2923.4,2.5304]
[1752354205919,2.5577,2923.5,2923.4,3.21429]
[1752354206213,3.24157,2923.5,2923.4,3.21429]
[1752354206412,2.5577,2923.5,2923.4,3.21429]
[1752354208209,0.6331,2923.5,2923.4,3.21429]
[1752354208411,2.5577,2923.7,2923.6,3.21425]
[1752354208712,5.7655,2923.8,2923.7,2.5304]
[1752354208911,5.7655,2923.8,2923.7,1.55]
[1752354209215,6.4493,2923.8,2923.7,3.21422]
[1752354209808,6.4493,2923.8,2923.7,2.5304]
[1752354210213,6.4493,2923.8,2923.7,1.55]
[1752354210413,6.4493,2923.8,2923.7,2.5304]
[1752354211109,3.2415,2923.8,2923.7,3.21422]
[1752354211718,3.2415,2923.8,2923.7,2.5304]
[1752354212415,3.2415,2923.8,2923.7,3.21422]
[1752354212616,3.2415,2923.8,2923.7,2.5304]
[1752354213315,3.2415,2923.8,2923.7,3.21422]
[1752354213612,3.2415,2923.8,2923.7,2.5304]
[1752354213814,3.2415,2923.8,2923.7,3.21422]
[1752354214207,2.5577,2923.8,2923.7,3.21422]
[1752354215412,2.5577,2924.1,2924.0,1.30073]
[1752354215612,3.24143,2924.1,2924.0,2.5304]
[1752354215815,3.24143,2924.1,2924.0,1.55]
[1752354216318,3.24143,2924.1,2924.0,3.21415]
[1752354216912,3.24143,2924.1,2924.0,3.63062035]
[1752354217311,3.24143,2924.1,2924.0,4.31437035]
[1752354218009,1.6099,2924.1,2924.0,4.31437035]
[1752354218215,2.92669696,2924.9,2924.4,1.34356]
[1752354218216,3.18054,2924.5,2924.4,1.34356]
[1752354218415,3.18054,2924.5,2924.4,4.33918035]
[1752354219814,3.18054,2924.5,2924.4,2.5553]
[1752354220214,0.68364,2924.5,2924.4,2.5553]
[1752354220413,3.18054,2924.5,2924.4,3.65552035]
[1752354221221,3.18054,2924.5,2924.4,4.33918035]
[1752354221516,2.26174,2924.5,2924.4,4.33918035]
[1752354221721,2.4969,2924.9,2924.8,1.6035]
[1752354222021,3.18046,2924.9,2924.8,4.33908035]
[1752354222215,2.4969,2924.9,2924.8,4.33908035]
[1752354222610,3.18044,2924.9,2924.8,4.33908035]
[1752354222813,3.18044,2924.9,2924.8,3.65552035]
[1752354223016,3.18044,2924.9,2924.8,0.6599]
[1752354223210,4.21694126,2924.9,2924.8,0.6599]
[1752354223716,3.18044,2924.9,2924.8,2.37246]
[1752354224019,3.18044,2924.9,2924.8,3.32426]
[1752354224221,3.18044,2924.9,2924.8,4.42448035]
[1752354226914,3.18044,2924.9,2924.8,2.6407]
[1752354227821,3.18044,2924.9,2924.8,3.32427]
[1752354229318,3.18044,2924.9,2924.8,4.42449035]
[1752354229721,0.68352,2925.1,2925.0,0.6835]
[1752354229926,1.8604,2925.2,2925.1,1.76012035]
[1752354229927,1.5553,2925.2,2925.1,1.76012035]
[1752354230222,2.59231453,2925.2,2925.1,3.65552035]
[1752354230417,3.53391453,2925.2,2925.1,3.65552035]
[1752354230819,4.21740453,2925.2,2925.1,4.33901035]
[1752354231015,1.03701453,2925.2,2925.1,4.33901035]
[1752354231522,1.67351453,2925.2,2925.1,4.33901035]
[1752354231924,0.6365,2925.2,2925.1,4.33901035]
[1752354232425,0.9188,2926.1,2925.9,0.68331]
[1752354232626,3.53438864,2926.0,2925.9,2.44343035]
[1752354232827,3.53438864,2926.0,2925.9,3.23861]
[1752354233627,2.4969,2926.0,2925.9,3.23861]
[1752354236026,3.18018,2926.0,2925.9,3.23861]
[1752354236230,2.4969,2926.0,2925.9,3.23861]
[1752354236530,1.5781,2926.3,2926.2,3.23854]
[1752354236830,1.5781,2926.3,2926.2,5.43606198]
[1752354236831,2.4969,2926.3,2926.2,5.43606198]
[1752354237020,2.4969,2926.3,2926.2,3.23854]
[1752354237530,3.18014,2926.2,2926.1,0.0854]
[1752354238627,2.4969,2925.6,2925.5,0.6599]
[1752354238830,0.9416,2925.3,2925.1,1.8954]
[1752354239125,0.6365,2925.2,2925.0,3.2078]
[1752354239330,3.18039,2925.1,2925.0,4.8113]
[1752354240436,3.18039,2925.1,2925.0,1.6035]
[1752354240727,2.4969,2925.1,2925.0,3.23882]
[1752354240926,3.18039,2925.1,2925.0,3.23882]
[1752354241123,0.9416,2925.4,2925.3,0.68345]
[1752354241432,2.4969,2925.6,2925.5,2.2869]
[1752354241629,2.4969,2925.6,2925.5,3.2387]
[1752354243331,2.4969,2925.6,2925.5,2.5553]
[1752354243528,2.4969,2925.6,2925.5,3.2387]
[1752354244235,1.5781,2925.6,2925.5,3.2387]
[1752354244832,0.6365,2925.6,2925.5,3.2387]
[1752354245530,1.8604,2925.8,2925.7,0.68335]
[1752354245737,2.4969,2925.8,2925.7,5.43617198]
[1752354246136,0.6365,2925.8,2925.7,5.43617198]
[1752354246335,2.5341,2925.8,2925.7,5.43617198]
[1752354247240,4.24340459,2925.8,2925.7,4.75282198]
[1752354247838,4.24340459,2925.8,2925.7,5.43617198]
[1752354248235,4.24340459,2925.8,2925.7,4.75282198]
[1752354248940,4.22040459,2925.8,2925.7,4.75282198]
[1752354249837,2.5111,2925.5,2925.4,3.24583]
[1752354250045,3.1945,2925.5,2925.4,0.6633]
[1752354250238,3.1945,2925.5,2925.4,1.6525]
[1752354250536,3.1945,2925.5,2925.4,2.5624]
[1752354251941,3.1945,2925.5,2925.4,0.6633]
[1752354252343,3.19455,2925.3,2925.2,3.24587]
[1752354252532,2.5111,2925.3,2925.2,3.24587]
[1752354252740,2.5111,2925.3,2925.2,5.44339198]
[1752354254241,3.19455,2925.3,2925.2,1.6525]
[1752354254941,2.5111,2925.3,2925.2,2.33597]
[1752354255142,2.5111,2925.3,2925.2,3.24587]
[1752354260246,2.5111,2925.3,2925.2,5.44339198]
[1752354260645,1.5642,2925.4,2925.3,3.24585]
[1752354260847,2.5111,2925.4,2925.3,3.24585]
[1752354261248,3.19452,2925.4,2925.3,3.24585]
[1752354262350,3.19459,2925.1,2925.0,0.6633]
[1752354262550,3.19459,2925.1,2925.0,3.24592]
[1752354263656,0.6135,2925.1,2925.0,5.44344198]
[1752354263843,2.5111,2925.3,2925.2,3.24587]
[1752354264047,2.5111,2925.6,2925.5,1.3467]
[1752354264250,3.54203785,2925.6,2925.5,5.44332198]
[1752354264747,4.22541785,2925.6,2925.5,5.44332198]
[1752354265352,3.19448,2925.6,2925.5,5.44332198]
[1752354268160,4.22680401,2925.6,2925.5,5.44332198]
[1752354269261,3.27990401,2925.6,2925.5,3.2458]
[1752354269457,3.27990401,2925.6,2925.2,0.68346]
[1752354269458,1.8976,2925.3,2925.2,0.68346]
[1752354269658,2.5111,2925.3,2925.2,2.33596]
[1752354269858,2.5111,2925.3,2925.2,1.34676]
[1752354270055,0.6135,2924.9,2924.8,0.7487]
[1752354270364,2.5111,2924.9,2924.8,3.33137]
[1752354270663,2.5111,2924.9,2924.8,3.24597]
[1752354270866,3.19464,2924.9,2924.8,3.24597]
[1752354271262,2.5111,2924.9,2924.8,3.24597]
[1752354273270,3.19464,2924.9,2924.8,3.24597]
[1752354273753,3.19464,2924.9,2924.8,2.5624]
[1752354273958,2.5111,2924.9,2924.7,3.2932]
[1752354274163,3.19467,2924.8,2924.7,1.7379]
[1752354274561,3.19467,2924.8,2924.7,2.5624]
[1752354277465,3.19467,2924.8,2924.7,3.24599]
[1752354277658,3.19467,2924.8,2924.7,2.5624]
[1752354278263,3.19467,2924.8,2924.7,3.24599]
[1752354279566,3.19467,2924.8,2924.7,2.5624]
[1752354279962,3.19467,2924.8,2924.7,3.24599]
[1752354280365,2.5111,2924.8,2924.7,3.24599]
[1752354280767,3.19467,2924.8,2924.7,3.24599]
[1752354281465,0.6135,2924.8,2924.7,3.24599]
[1752354281767,0.9823,2925.0,2924.7,3.24599]
[1752354281768,1.5863,2925.4,2925.3,3.20615]
[1752354281967,2.5686,2925.4,2925.3,8.61147198]
[1752354282165,2.5686,2925.4,2925.3,5.40367198]
[1752354282362,3.25202,2925.4,2925.3,5.40367198]
[1752354282558,3.25202,2925.4,2925.3,3.20615]
[1752354282861,2.5686,2925.4,2925.3,3.20615]
[1752354283862,3.25202,2925.4,2925.3,3.20615]
[1752354284059,2.5686,2925.4,2925.3,3.20615]
[1752354285170,3.25202,2925.4,2925.3,3.20615]
[1752354287172,3.25202,2925.4,2925.3,2.5227]
[1752354287372,3.25205,2925.3,2925.2,0.0854]
[1752354288174,0.68349,2925.1,2925.0,3.2062]
[1752354288369,1.34079,2925.1,2925.0,3.2062]
[1752354288564,3.25209,2925.1,2925.0,3.2062]
[1752354289475,0.68352,2925.0,2924.9,3.2932]
[1752354289779,3.25212,2925.0,2924.9,1.6103]
[1752354290170,3.25212,2925.0,2924.9,2.6081]
[1752354290470,3.25212,2925.0,2924.9,0.0854]
[1752354290671,3.25212,2925.0,2924.3,4.91698]
[1752354290672,1.34088,2924.8,2924.7,2.5227]
[1752354291272,3.25218,2924.8,2924.7,2.5227]
[1752354291676,3.25218,2924.8,2924.7,3.20629]
[1752354291677,3.25217,2924.8,2924.7,3.20629]
[1752354292071,3.25217,2924.8,2924.7,2.5227]
[1752354292469,3.25217,2924.8,2924.7,1.5249]
[1752354292677,3.25219,2924.7,2924.6,0.7043]
[1752354293274,4.91666,2925.0,2924.3,3.2078]
[1752354293275,2.5686,2924.5,2924.3,3.2078]
[1752354293479,3.25224,2924.5,2924.4,1.5249]
[1752354293974,1.34098,2924.3,2924.2,1.6167]
[1752354294179,3.25228,2924.3,2924.2,3.20641]
[1752354294376,2.5686,2924.3,2924.2,3.20641]
[1752354294677,3.25228,2924.3,2924.2,3.20641]
[1752354294872,0.68371,2924.2,2924.1,0.0854]
[1752354295076,3.25231,2924.2,2924.1,0.7043]
[1752354295469,3.25231,2924.2,2924.1,0.0854]
[1752354296169,2.5686,2924.0,2923.9,3.20647]
[1752354296675,3.25235,2924.0,2923.9,3.20647]
[1752354297075,3.25235,2924.0,2923.9,2.5227]
[1752354297478,2.5686,2924.0,2923.9,3.20648]
[1752354298190,3.25235,2924.0,2923.9,3.20648]
[1752354299375,2.5686,2924.0,2923.9,3.20648]
[1752354299976,3.25235,2924.0,2923.9,3.20648]
[1752354300178,3.25235,2924.0,2923.9,2.5227]
[1752354300382,2.5686,2923.9,2923.8,0.0855]
[1752354300685,3.25238,2923.9,2923.8,0.0855]
[1752354300983,0.6573,2923.7,2923.6,3.20655]
[1752354301178,0.6573,2924.2,2924.1,1.30263]
[1752354301482,0.6573,2924.2,2924.1,2.40316936]
[1752354301681,1.5863,2924.2,2924.1,2.40316936]
[1752354301873,2.5686,2924.2,2924.1,4.30696936]
[1752354302183,2.5686,2924.2,2924.1,7.51476936]
[1752354302782,2.5686,2924.2,2924.1,8.61391422]
[1752354303378,1.5863,2924.2,2924.1,8.61391422]
[1752354304079,0.929,2924.5,2924.3,2.5227]
[1752354304279,2.5686,2924.7,2924.6,1.30251]
[1752354304480,2.5686,2924.7,2924.6,2.20851]
[1752354304680,2.5686,2924.7,2924.6,3.20631]
[1752354304876,1.5863,2924.7,2924.6,3.20631]
[1752354305280,0.6573,2924.7,2924.6,3.20631]
[1752354305785,2.5686,2924.9,2924.8,3.20626]
[1752354306282,0.5686,2924.9,2924.8,3.20626]
[1752354306481,1.33737,2925.2,2925.1,0.6209]
[1752354306783,1.33737,2925.2,2925.1,3.26239]
[1752354307386,1.33737,2925.2,2925.1,2.5789]
[1752354308688,1.33737,2925.2,2925.1,3.26239]
[1752354308883,3.8617,2925.4,2925.3,0.6209]
[1752354309187,6.50484,2925.4,2925.3,0.9897]
[1752354309387,6.50484,2925.4,2925.3,1.6106]
[1752354309578,6.50484,2925.4,2925.3,2.5789]
[1752354309783,6.50484,2925.4,2925.3,0.9897]
[1752354310083,1.33737,2925.2,2925.1,2.5789]
[1752354310290,3.29707,2925.2,2925.1,3.26239]
[1752354310983,3.29707,2925.2,2925.1,2.5789]
[1752354311391,3.29707,2925.2,2925.1,3.26239]
[1752354312289,0.6539,2925.4,2925.3,1.30433]
[1752354312889,0.6539,2925.4,2925.3,3.26233]
[1752354313591,0.6539,2925.4,2925.3,3.34773]
[1752354314090,0.9987,2925.6,2925.3,2.6643]
[1752354314291,3.297,2925.6,2925.5,2.5789]
[1752354314492,4.32511729,2925.6,2925.5,2.5789]
[1752354315393,3.297,2925.6,2925.5,2.5789]
[1752354315691,0.6539,2925.6,2925.5,3.2623]
[1752354315894,1.33728,2925.6,2925.5,3.2623]
[1752354320294,1.33728,2925.6,2925.5,2.5789]
[1752354320590,3.29698,2925.6,2925.5,2.5789]
[1752354326700,2.33598,2925.6,2925.5,2.5789]
[1752354327099,2.33598,2925.6,2925.5,3.3477]
[1752354327498,1.33728,2925.6,2925.5,3.3477]
[1752354327697,1.33728,2925.6,2925.5,2.6643]
[1752354328003,3.29698,2925.6,2925.5,2.6643]
[1752354332614,2.33598,2925.6,2925.5,2.6643]
[1752354333310,2.33598,2925.6,2925.5,3.3477]
[1752354333614,2.33598,2925.6,2925.5,2.6643]
[1752354334417,3.36624207,2925.6,2925.5,3.3477]
[1752354334618,2.36754207,2925.6,2925.5,2.6643]
[1752354335015,2.36754207,2925.6,2925.5,3.3477]
[1752354335216,2.36754207,2925.6,2925.5,2.6643]
[1752354335413,4.32724207,2925.6,2925.5,2.6643]
[1752354335611,4.32724207,2925.6,2925.5,3.3477]
[1752354336316,4.32724207,2925.6,2925.5,2.6643]
[1752354336514,4.32724207,2925.6,2925.5,3.3477]
[1752354337817,4.32724207,2925.6,2925.5,2.6643]
[1752354338019,4.32724207,2925.6,2925.5,3.3477]
[1752354339718,3.36624207,2925.6,2925.5,3.3477]
[1752354342218,1.03026207,2925.6,2925.5,3.3477]
[1752354343119,1.71364207,2925.6,2925.5,3.3477]
[1752354344220,1.03026207,2925.6,2925.5,3.3477]
[1752354346217,1.32874,2925.8,2925.7,2.30375]
[1752354346418,1.6777488,2925.8,2925.7,3.21275]
[1752354347424,1.0323488,2925.8,2925.7,3.21275]
[1752354347919,1.0323488,2925.8,2925.7,3.29815]
[1752354348121,1.21777696,2926.3,2926.2,0.68324]
[1752354348322,5.75418696,2926.4,2926.3,1.31601]
[1752354348521,5.75418696,2926.4,2926.3,3.21261]
[1752354348720,4.53641,2926.4,2926.3,3.21261]
[1752354348922,4.53641,2926.4,2926.3,2.5294]
[1752354349925,6.50291,2926.4,2926.3,2.5294]
[1752354351128,6.50291,2926.4,2926.3,1.8966]
[1752354351330,6.50291,2926.4,2926.3,2.5294]
[1752354351724,3.29511,2926.4,2926.3,2.5294]
[1752354352925,3.29511,2926.4,2926.3,3.21261]
[1752354353126,1.32861,2926.4,2926.3,3.21261]
[1752354353920,1.32859,2926.4,2926.3,3.21261]
[1752354354123,1.6221,2926.6,2926.5,1.5418]
[1752354354328,1.32854,2926.6,2926.5,2.5294]
[1752354355630,2.30524,2926.6,2926.5,3.21257]
[1752354355932,1.32854,2926.6,2926.5,3.21257]
[1752354356430,1.32854,2926.6,2926.5,2.5294]
[1752354357326,1.32854,2926.6,2926.5,3.21257]
[1752354358126,1.32854,2926.7,2926.6,1.31592]
[1752354358430,1.32854,2926.7,2926.6,3.21252]
[1752354358627,3.8532,2927.0,2926.9,1.6204]
[1752354358827,4.53625,2927.0,2926.9,2.5294]
[1752354359132,4.53625,2927.0,2926.9,1.8966]
[1752354359133,6.50275,2927.0,2926.9,1.8966]
[1752354360033,7.52455787,2927.0,2926.9,1.8966]
[1752354360333,7.52455787,2927.0,2926.9,2.5294]
[1752354360834,6.53475787,2927.0,2926.9,2.5294]
[1752354361028,5.55805787,2927.0,2926.9,2.5294]
[1752354361428,7.52455787,2927.0,2926.9,2.5294]
[1752354361634,1.32845,2927.0,2926.9,2.5294]
[1752354362131,1.32833,2927.5,2927.4,1.31575]
[1752354362637,4.31620009,2927.5,2927.4,1.6204]
[1752354362931,4.31620009,2927.5,2927.4,2.5294]
[1752354363135,1.70430009,2927.5,2927.4,0.0854]
[1752354363434,3.44904303,2927.5,2927.4,0.0854]
[1752354363637,4.31620009,2927.5,2927.4,0.0854]
[1752354363836,5.41554303,2927.5,2927.4,0.0854]
[1752354364533,2.30515,2927.0,2926.9,3.8406]
[1752354364737,4.39429294,2927.0,2926.9,3.8406]
[1752354365034,4.39429294,2927.0,2926.9,5.7372]
[1752354366038,3.29495,2927.0,2926.9,5.7372]
[1752354367433,2.30515,2927.0,2926.9,5.7372]
[1752354367629,1.32845,2927.0,2926.9,5.7372]
[1752354367833,1.32845,2927.0,2926.9,2.5294]
[1752354370641,1.32845,2927.0,2926.9,3.21247]
[1752354371042,1.32845,2927.0,2926.9,2.5294]
[1752354371542,0.6454,2927.0,2926.9,4.31181294]
[1752354372238,1.32845,2927.0,2926.9,2.5294]
[1752354372442,1.32845,2927.0,2926.7,1.18474294]
[1752354372443,2.4988,2926.9,2926.7,0.0854]
[1752354372647,4.28124294,2926.8,2926.7,0.9966]
[1752354372833,0.68314,2926.6,2926.5,1.8304]
[1752354373039,2.25814,2926.6,2926.5,2.4948]
[1752354373246,3.18194,2926.6,2926.5,3.17797]
[1752354373438,0.6538,2926.6,2926.5,3.17797]
[1752354373638,1.33694,2926.6,2926.5,3.17797]
[1752354376246,2.26074,2926.6,2926.5,2.4948]
[1752354376846,0.68314,2926.6,2926.5,3.17797]
[1752354377046,1.33694,2926.6,2926.5,3.17797]
[1752354377347,1.33694,2926.6,2926.5,2.4948]
[1752354377551,1.33694,2926.6,2926.5,3.17797]
[1752354380547,3.18194,2926.6,2926.5,2.4948]
[1752354382057,3.18194,2926.6,2926.5,3.17797]
[1752354382356,3.18194,2926.6,2926.5,2.4948]
[1752354382550,3.18194,2926.6,2926.5,3.17797]
[1752354382751,2.26074,2926.6,2926.5,3.17797]
[1752354384154,1.33694,2926.6,2926.5,3.17797]
[1752354394571,1.33694,2926.6,2926.5,2.4948]
[1752354395272,1.33694,2926.6,2926.5,3.17797]
[1752354399372,3.26594,2926.6,2926.5,3.17797]
[1752354399871,2.30544,2926.6,2926.5,3.17797]
[1752354400671,3.26594,2926.6,2926.5,3.14067]
[1752354401472,2.30544,2926.6,2926.5,3.14067]
[1752354402673,3.32990125,2926.6,2926.5,3.14067]
[1752354403173,4.29040125,2926.6,2926.5,3.18067]
[1752354404973,4.29040125,2926.6,2926.5,2.4975]
[1752354405175,4.29040125,2926.6,2926.5,3.18067]
[1752354405375,3.32990125,2926.6,2926.5,3.18067]
[1752354405871,1.70760125,2926.6,2926.5,2.4975]
[1752354406176,2.34070125,2926.6,2926.5,3.18067]
[1752354406370,1.31624,2926.6,2926.5,3.18067]
[1752354407473,3.24524,2926.6,2926.5,2.4975]
[1752354407775,4.34458294,2926.6,2926.5,0.9197]
[1752354407976,3.24527,2926.5,2926.4,0.0854]
[1752354408375,1.31631,2926.3,2926.2,2.4975]
[1752354408669,6.45311,2926.3,2926.2,0.9197]
[1752354408869,3.24536,2926.1,2926.0,1.8704]
[1752354409069,4.34470294,2926.1,2926.0,1.8704]
[1752354409273,4.34470294,2926.1,2926.0,2.4975]
[1752354411179,4.34470294,2926.1,2926.0,3.18078]
[1752354411180,3.24536,2926.1,2926.0,3.18078]
[1752354411479,2.28486,2926.1,2926.0,3.18078]
[1752354413079,1.31636,2926.1,2926.0,3.18078]
[1752354414075,3.2078,2926.6,2926.5,1.31027]
[1752354414274,5.55928821,2926.6,2926.5,2.4975]
[1752354414872,3.31998821,2926.6,2926.5,2.4975]
[1752354415077,2.28477,2926.6,2926.5,2.4975]
[1752354415680,3.24527,2926.6,2926.5,2.4975]
[1752354420888,3.24527,2926.6,2926.5,3.18067]
[1752354421488,3.24527,2926.6,2926.5,2.4975]
[1752354422191,3.24527,2926.6,2926.5,3.18067]
[1752354422488,2.28467,2926.9,2926.8,2.4975]
[1752354422791,4.28402299,2926.9,2926.8,2.4975]
[1752354424587,3.24522,2926.7,2926.6,1.5778]
[1752354424786,4.28407299,2926.7,2926.6,2.4975]
[1752354429099,1.72197299,2926.7,2926.6,2.4975]
[1752354429293,1.72197299,2926.7,2926.6,3.18064]
[1752354429491,2.38977299,2926.7,2926.6,3.18064]
[1752354429692,2.38977299,2926.7,2926.6,2.4975]
[1752354429994,2.38977299,2926.7,2926.6,3.18064]
[1752354431195,1.72197299,2926.7,2926.6,3.18064]
[1752354431399,3.2078,2927.2,2927.1,3.19333]
[1752354431696,3.8908,2927.2,2927.1,2.5103]
[1752354431897,3.8908,2927.2,2927.1,3.19333]
[1752354432391,0.683,2927.2,2927.1,3.19333]
[1752354433099,0.683,2927.2,2927.1,2.5103]
[1752354433299,1.3508,2927.2,2927.1,2.5103]
[1752354433494,1.3508,2927.2,2927.1,3.19333]
[1752354436900,0.6678,2927.4,2927.3,0.6045]
[1752354437196,1.35078,2927.4,2927.3,0.6045]
[1752354437392,2.30618,2927.4,2927.3,0.6045]
[1752354437593,2.30618,2927.4,2927.3,2.5103]
[1752354438197,2.30618,2927.4,2927.3,3.19328]
[1752354438395,1.35078,2927.4,2927.3,3.19328]
[1752354441310,0.6678,2927.4,2927.3,3.19328]
[1752354441605,1.35076,2927.4,2927.3,3.19328]
[1752354441797,0.68296,2927.4,2927.3,3.19328]
[1752354441999,6.84412,2927.8,2927.4,3.19323]
[1752354442000,0.68295,2927.5,2927.4,3.19323]
[1752354442201,5.8047,2927.8,2927.7,1.5672]
[1752354442398,6.48756,2927.8,2927.7,2.5103]
[1752354443099,6.48756,2927.8,2927.7,1.9058]
[1752354443403,0.68298,2927.3,2927.2,1.28749]
[1752354443594,2.30618,2927.3,2927.2,2.23059]
[1752354443799,3.27988,2927.3,2927.2,2.23059]
[1752354444000,3.27988,2927.3,2927.2,3.19329]
[1752354444403,3.27988,2927.3,2927.2,3.27869]
[1752354444601,3.27988,2927.3,2927.2,2.5957]
[1752354444799,4.37922294,2927.3,2927.2,1.9912]
[1752354445303,4.37922294,2927.3,2927.2,1.0481]
[1752354445496,4.37922294,2927.3,2927.2,2.5957]
[1752354448196,0.68298,2927.3,2927.2,2.5957]
[1752354448402,3.2078,2927.5,2927.2,2.5957]
[1752354448403,1.35077,2927.4,2927.3,3.19326]
[1752354448708,1.35077,2927.4,2927.3,2.5103]
[1752354449302,1.35077,2927.4,2927.3,3.19328]
[1752354450205,1.35077,2927.4,2927.3,2.5103]
[1752354450806,1.35077,2927.4,2927.3,3.19328]
[1752354451410,1.35076,2927.4,2927.3,3.19328]
[1752354453009,0.6678,2927.4,2927.3,3.19328]
[1752354453810,0.6678,2927.5,2927.4,0.6045]
[1752354454008,1.35073,2927.5,2927.4,3.19326]
[1752354454211,0.6678,2927.5,2927.4,3.19326]
[1752354454907,1.35073,2927.5,2927.4,3.19326]
[1752354455610,0.6678,2927.5,2927.4,3.19326]
[1752354455812,0.6678,2927.5,2927.4,3.27866]